bitfinex/quotes_BTCUSD_20241101
["timestamp","ask_amount","ask_price","bid_price","bid_amount"]
[1730481301374,0.02203598,69905.0,69901.0,0.21468288]
[1730481301599,0.02203598,69905.0,69895.0,0.286142]
[1730481301600,0.02115497,69902.0,69895.0,0.286142]
[1730481301848,0.08827491,69901.0,69896.0,0.28152325]
[1730481302095,0.143063,69899.0,69896.0,0.13845525]
[1730481302350,0.143067,69897.0,69896.0,0.13845525]
[1730481302594,0.23134251,69897.0,69896.0,0.13845525]
[1730481302817,0.25337893,69897.0,69896.0,0.13845525]
[1730481303025,0.23134251,69897.0,69896.0,0.13845525]
[1730481303243,0.23134251,69897.0,69896.0,0.14145525]
[1730481303461,0.11031147,69897.0,69896.0,0.14145525]
[1730481304185,0.04495274,69897.0,69896.0,0.13845525]
[1730481304435,0.143072,69895.0,69888.0,0.143086]
[1730481304637,0.23131655,69894.0,69889.0,0.34278014]
[1730481304894,0.06445447,69893.0,69890.0,0.14308]
[1730481305128,0.286133,69898.0,69891.0,0.13845525]
[1730481305129,0.04330411,69892.0,69891.0,0.13845525]
[1730481305375,0.04330411,69892.0,69891.0,0.28153425]
[1730481305376,0.07766182,69892.0,69891.0,0.28153425]
[1730481305814,0.05651814,69892.0,69891.0,0.28153425]
[1730481306454,0.05651814,69892.0,69891.0,0.28653425]
[1730481306692,0.05651814,69892.0,69891.0,0.14345525]
[1730481306936,0.05651814,69892.0,69885.0,0.00164]
[1730481307181,0.16421872,69892.0,69891.0,0.003]
[1730481307409,0.08645966,69892.0,69891.0,0.003]
[1730481307648,0.05651282,69892.0,69891.0,0.59369025]
[1730481307875,0.04756584,69892.0,69891.0,0.59369025]
[1730481308325,0.286109,69904.0,69891.0,0.59369025]
[1730481308326,0.286068,69914.0,69907.0,0.143046]
[1730481308569,0.02114725,69895.0,69894.0,0.023]
[1730481308808,0.02115101,69902.0,69901.0,0.023]
[1730481309038,0.04761031,69902.0,69901.0,0.30451425]
[1730481309302,0.04761031,69902.0,69901.0,0.39219027]
[1730481310205,0.04761031,69902.0,69901.0,0.30951425]
[1730481310641,0.04761031,69902.0,69901.0,0.60219713]
[1730481310852,0.04761031,69902.0,69901.0,0.38751425]
[1730481311071,0.03438505,69902.0,69901.0,0.60219713]
[1730481311288,0.00894537,69909.0,69906.0,0.023]
[1730481311500,0.02115768,69917.0,69916.0,0.166028]
[1730481311726,0.000822,69918.0,69917.0,0.166026]
[1730481311942,0.000822,69918.0,69917.0,0.30734155]
[1730481312205,0.02198905,69918.0,69917.0,0.30448125]
[1730481312478,0.03521846,69918.0,69917.0,0.84470952]
[1730481312685,0.00082,69922.0,69921.0,0.166018]
[1730481312942,0.00082,69922.0,69921.0,0.54581023]
[1730481313164,0.00082,69922.0,69921.0,0.54295055]
[1730481313625,0.21468288,69942.0,69936.0,0.165987]
[1730481313865,0.21468288,69942.0,69936.0,0.30444225]
[1730481314083,0.02203189,69950.0,69936.0,0.51912513]
[1730481314314,0.000811,69952.0,69936.0,0.51912513]
[1730481314315,0.000811,69952.0,69936.0,0.73560243]
[1730481314571,0.000811,69952.0,69936.0,0.52091955]
[1730481315043,0.000811,69952.0,69936.0,1.02091955]
[1730481315778,0.000811,69952.0,69936.0,1.12491955]
[1730481316691,0.000811,69952.0,69936.0,1.13891955]
[1730481317121,0.000811,69952.0,69936.0,1.12091955]
[1730481317367,0.000811,69952.0,69945.0,0.142969]
[1730481317604,0.000811,69952.0,69951.0,0.242957]
[1730481317806,0.000811,69952.0,69951.0,0.65481612]
[1730481318042,0.00081,69956.0,69955.0,0.142949]
[1730481318281,0.00081,69956.0,69955.0,0.40726237]
[1730481318509,0.142889,69985.0,69973.0,0.165912]
[1730481318510,0.142888,69985.0,69973.0,0.165912]
[1730481318728,0.142888,69985.0,69973.0,0.40287909]
[1730481318971,0.21468288,69986.0,69973.0,0.40287909]
[1730481318972,0.35756888,69986.0,69978.0,0.285802]
[1730481319203,0.286575,69988.0,69979.0,0.13845525]
[1730481319431,0.00081,69988.0,69982.0,0.142893]
[1730481319648,0.142883,69987.0,69983.0,0.13845525]
[1730481319857,0.142883,69987.0,69983.0,0.28134525]
[1730481320073,0.00081,69988.0,69985.0,0.285775]
[1730481320351,0.00081,69988.0,69987.0,0.142883]
[1730481320581,0.00081,69988.0,69987.0,0.13845525]
[1730481320797,0.143691,69988.0,69987.0,0.13845525]
[1730481321235,0.00081,69988.0,69987.0,0.13845525]
[1730481321450,0.00081,69988.0,69987.0,0.25500174]
[1730481321933,0.00081,69988.0,69987.0,0.39788474]
[1730481322422,0.285771,69987.0,69982.0,0.5]
[1730481322666,0.142885,69986.0,69984.0,0.21468288]
[1730481322894,0.142885,69986.0,69985.0,0.13845525]
[1730481323099,0.142885,69986.0,69985.0,0.2254432]
[1730481323314,0.143693,69988.0,69985.0,0.2254432]
[1730481323772,0.143693,69988.0,69987.0,0.004]
[1730481323975,0.00081,69988.0,69987.0,0.004]
[1730481324203,0.00081,69988.0,69985.0,0.3683292]
[1730481324435,0.143692,69988.0,69985.0,0.2314432]
[1730481324659,0.143692,69988.0,69986.0,0.06736222]
[1730481324886,0.143692,69988.0,69985.0,0.13845525]
[1730481325095,0.00081,69988.0,69985.0,0.13845525]
[1730481325310,0.00081,69988.0,69987.0,0.004]
[1730481325531,0.00081,69988.0,69987.0,0.30833825]
[1730481326466,0.00081,69988.0,69987.0,0.38933825]
[1730481326728,0.00081,69988.0,69987.0,0.52381555]
[1730481327830,0.00081,69988.0,69987.0,0.53581555]
[1730481328268,0.00081,69988.0,69987.0,0.52381555]
[1730481328495,0.00081,69988.0,69987.0,0.53181555]
[1730481328704,0.00081,69988.0,69987.0,0.53781555]
[1730481329139,0.00081,69988.0,69987.0,0.55181555]
[1730481329829,0.00081,69988.0,69987.0,0.52381555]
[1730481330050,0.00081,69988.0,69987.0,0.44281555]
[1730481330314,0.00081,69988.0,69987.0,0.45681555]
[1730481330554,0.00081,69988.0,69987.0,0.47081555]
[1730481330774,0.00081,69988.0,69987.0,0.62147986]
[1730481331221,0.00081,69988.0,69987.0,0.63547986]
[1730481331642,0.00081,69988.0,69987.0,0.62147986]
[1730481331894,0.00081,69988.0,69987.0,0.61475411]
[1730481332354,0.00081,69988.0,69987.0,0.62875411]
[1730481332595,0.00081,69988.0,69987.0,0.1457295]
[1730481332839,0.143691,69988.0,69987.0,0.00727425]
[1730481333072,0.143691,69988.0,69987.0,0.03527425]
[1730481333073,0.00081,69988.0,69987.0,0.03527425]
[1730481333293,0.00081,69988.0,69987.0,0.29533825]
[1730481333526,0.00081,69988.0,69987.0,0.41981555]
[1730481333757,0.00081,69988.0,69987.0,0.4270898]
[1730481333987,0.00081,69988.0,69987.0,0.4390898]
[1730481334208,0.00081,69988.0,69987.0,0.5372898]
[1730481334435,0.00081,69988.0,69987.0,0.5512898]
[1730481334907,0.00081,69988.0,69987.0,0.5372898]
[1730481335128,0.00081,69988.0,69987.0,0.5252898]
[1730481335397,0.00081,69988.0,69987.0,0.5302898]
[1730481335641,0.00081,69988.0,69987.0,0.5252898]
[1730481336077,0.00081,69988.0,69987.0,0.5392898]
[1730481336298,0.00081,69988.0,69987.0,0.6532898]
[1730481336749,0.00081,69988.0,69987.0,0.6252898]
[1730481337180,0.00081,69988.0,69987.0,0.6392898]
[1730481337633,0.00081,69988.0,69987.0,0.6252898]
[1730481337896,0.00081,69988.0,69987.0,0.4868125]
[1730481338105,0.03494415,69988.0,69987.0,0.3026125]
[1730481338338,0.03494415,69988.0,69987.0,0.1737295]
[1730481338581,0.05700821,69988.0,69987.0,0.3026125]
[1730481338801,0.04807394,69988.0,69987.0,0.3026125]
[1730481339029,0.04807394,69988.0,69987.0,0.4550898]
[1730481339290,0.04811175,69988.0,69987.0,0.2886125]
[1730481339524,0.04811175,69988.0,69987.0,0.1457295]
[1730481339738,0.06914058,69988.0,69987.0,0.1687295]
[1730481339975,0.06914058,69988.0,69987.0,0.1597295]
[1730481340201,0.06914058,69988.0,69987.0,0.38601561]
[1730481340478,0.07807505,69988.0,69987.0,0.1627295]
[1730481340696,0.10003819,69988.0,69987.0,0.3286125]
[1730481340918,0.07807505,69988.0,69987.0,0.3186125]
[1730481341149,0.07807505,69988.0,69987.0,0.67177268]
[1730481341375,0.07807505,69988.0,69987.0,0.4660898]
[1730481341811,0.07807505,69988.0,69987.0,0.4590898]
[1730481342250,0.07807505,69988.0,69987.0,0.4650898]
[1730481342466,0.07807505,69988.0,69987.0,0.4500898]
[1730481342691,0.06932625,69988.0,69987.0,0.4500898]
[1730481342966,0.11261744,69988.0,69987.0,0.4630898]
[1730481343135,0.07846279,69988.0,69987.0,0.4630898]
[1730481343359,0.06952923,69988.0,69987.0,0.4630898]
[1730481343814,0.06952923,69988.0,69987.0,0.5630898]
[1730481344317,0.07848734,69988.0,69987.0,0.5630898]
[1730481344523,0.07848734,69988.0,69987.0,0.6439898]
[1730481345668,0.10055785,69988.0,69987.0,0.6309898]
[1730481345895,0.10055785,69988.0,69987.0,0.6449898]
[1730481346120,0.10055785,69988.0,69987.0,0.6589898]
[1730481346376,0.07855533,69988.0,69987.0,0.6449898]
[1730481346601,0.02207025,70005.0,70001.0,0.165855]
[1730481346821,0.00081,70007.0,70001.0,0.46897456]
[1730481347050,0.00081,70007.0,70001.0,0.95594272]
[1730481347261,0.00081,70007.0,70001.0,0.84125984]
[1730481348380,0.21468288,70032.0,70023.0,0.16581]
[1730481348600,0.21468288,70032.0,70023.0,0.57119916]
[1730481348814,0.21468288,70032.0,70023.0,0.57824471]
[1730481349027,0.50023088,70041.0,70023.0,0.57824471]
[1730481349028,0.285558,70039.0,70023.0,0.57824471]
[1730481349241,0.285558,70039.0,70023.0,1.07824471]
[1730481349461,0.142782,70037.0,70023.0,1.07824471]
[1730481349679,0.285558,70039.0,70023.0,1.07824471]
[1730481349882,0.428349,70037.0,70023.0,1.09224471]
[1730481350107,0.285558,70039.0,70023.0,0.9385804]
[1730481350328,0.142785,70036.0,70023.0,0.9135804]
[1730481350541,0.142783,70037.0,70023.0,0.9135804]
[1730481350717,0.14279,70033.0,70023.0,0.9245804]
[1730481350977,0.285584,70032.0,70023.0,0.6565008]
[1730481351188,0.1610107,70024.0,70023.0,0.6565008]
[1730481351432,0.1110107,70024.0,70023.0,0.6565008]
[1730481351873,0.1110107,70024.0,70023.0,0.52104555]
[1730481352306,0.1110107,70024.0,70023.0,0.50704555]
[1730481352514,0.1110107,70024.0,70023.0,0.51804555]
[1730481352738,0.1110107,70024.0,70023.0,0.50704555]
[1730481352950,0.1110107,70024.0,70023.0,0.52004555]
[1730481353184,0.25508179,70024.0,70023.0,0.52904555]
[1730481353396,0.25508179,70024.0,70023.0,0.50704555]
[1730481353612,0.25508179,70024.0,70023.0,0.47488897]
[1730481353825,0.25508179,70024.0,70023.0,0.48205383]
[1730481354728,0.25508179,70024.0,70023.0,0.50716483]
[1730481355186,0.25608179,70024.0,70023.0,0.50716483]
[1730481355431,0.25708179,70024.0,70023.0,0.50816483]
[1730481355666,0.25508179,70024.0,70023.0,0.50616483]
[1730481356089,0.25808179,70024.0,70023.0,0.50816483]
[1730481356531,0.27926258,70024.0,70023.0,0.50816483]
[1730481356786,0.15890279,70024.0,70023.0,0.50816483]
[1730481357041,0.18008323,70024.0,70023.0,0.50816483]
[1730481357280,0.18008323,70024.0,70023.0,0.00816486]
[1730481357708,0.18008323,70024.0,70023.0,0.002]
[1730481357923,0.13601214,70024.0,70023.0,0.002]
[1730481358566,0.05146921,70024.0,70023.0,0.002]
[1730481358789,0.19327721,70024.0,70023.0,0.001]
[1730481359011,0.09256861,70024.0,70013.0,0.21468288]
[1730481359231,0.142828,70014.0,70013.0,0.21468288]
[1730481359443,0.142826,70015.0,70014.0,0.00622201]
[1730481359657,0.04762596,70015.0,70013.0,0.00622836]
[1730481359886,0.142841,70008.0,70005.0,0.16145525]
[1730481360112,0.19046896,70007.0,70006.0,0.13845525]
[1730481360341,0.19046693,70007.0,70006.0,0.13845525]
[1730481360561,0.19046693,70007.0,70006.0,0.14472807]
[1730481361047,0.04762493,70007.0,70006.0,0.15292806]
[1730481361258,0.01322853,70007.0,70006.0,0.48343637]
[1730481361474,0.047614,70007.0,70006.0,0.16772807]
[1730481361687,0.047614,70007.0,70006.0,0.00627282]
[1730481362126,0.047614,70007.0,70006.0,0.34077015]
[1730481362339,0.047614,70007.0,70006.0,0.50543446]
[1730481362549,0.047614,70007.0,70006.0,0.50443446]
[1730481362999,0.03438046,70007.0,70006.0,0.36659046]
[1730481363209,0.04760377,70007.0,70006.0,0.50943446]
[1730481363452,0.04761125,70007.0,70006.0,0.34477015]
[1730481363872,0.04761125,70007.0,70006.0,0.34677015]
[1730481364082,0.04761125,70007.0,70006.0,0.33977015]
[1730481364313,0.047619,70007.0,70006.0,0.33977015]
[1730481364523,0.047619,70007.0,70006.0,0.35077015]
[1730481364960,0.047619,70007.0,70006.0,0.33977015]
[1730481365192,0.047619,70007.0,70006.0,0.50443446]
[1730481365418,0.047619,70007.0,70006.0,0.52243446]
[1730481365646,0.04762091,70007.0,70006.0,0.51543446]
[1730481365858,0.04762091,70007.0,70006.0,0.50443446]
[1730481366104,0.0343915,70007.0,70006.0,0.79643446]
[1730481366316,0.0132275,70007.0,70006.0,0.88943446]
[1730481366529,0.000821,70024.0,70023.0,0.16581]
[1730481366760,0.03522405,70024.0,70023.0,0.31043011]
[1730481366971,0.03522405,70024.0,70023.0,0.16762011]
[1730481367203,0.17803205,70024.0,70023.0,0.00616486]
[1730481367424,0.18861765,70024.0,70023.0,0.00616486]
[1730481367661,0.142824,70017.0,70011.0,0.35751688]
[1730481367884,0.142832,70012.0,70011.0,0.21468288]
[1730481368098,0.000821,70024.0,70012.0,0.00623471]
[1730481368286,0.142824,70017.0,70011.0,0.26029545]
[1730481368534,0.0449832,70016.0,70013.0,0.00622836]
[1730481368750,0.0449832,70015.0,70014.0,0.00622201]
[1730481368970,0.0449832,70015.0,70014.0,0.13845525]
[1730481369183,0.0449832,70015.0,70014.0,0.81050526]
[1730481370070,0.0449832,70015.0,70014.0,0.81350526]
[1730481370287,0.0449832,70015.0,70014.0,1.19285245]
[1730481370516,0.000821,70023.0,70022.0,0.165812]
[1730481370760,0.000821,70023.0,70022.0,0.46893156]
[1730481370761,0.04583485,70023.0,70022.0,0.46893156]
[1730481370996,0.04583485,70023.0,70022.0,0.47510277]
[1730481371427,0.01406037,70023.0,70022.0,0.47510277]
[1730481371640,0.03524518,70023.0,70022.0,0.42308454]
[1730481371863,0.01406037,70023.0,70022.0,0.42308454]
[1730481372076,0.000821,70023.0,70022.0,0.80243173]
[1730481372341,0.00081,70055.0,70044.0,0.0776]
[1730481372535,0.21468288,70047.0,70046.0,0.165763]
[1730481372766,0.00081,70055.0,70052.0,0.285501]
[1730481373009,0.00081,70055.0,70054.0,0.165747]
[1730481373220,0.04584374,70055.0,70054.0,0.43812853]
[1730481373449,0.00081,70055.0,70054.0,0.44409665]
[1730481374780,0.00081,70055.0,70054.0,0.54409665]
[1730481375013,0.0002,70057.0,70055.0,0.123]
[1730481375236,0.0002,70057.0,70056.0,0.40419725]
[1730481375457,0.0002,70057.0,70056.0,0.54862998]
[1730481375905,0.0002,70057.0,70056.0,0.76331286]
[1730481376133,0.0002,70057.0,70056.0,0.54862998]
[1730481376425,0.0002,70057.0,70056.0,0.44862998]
[1730481377088,0.0002,70057.0,70056.0,0.54862998]
[1730481377990,0.0002,70057.0,70056.0,0.56262998]
[1730481378213,0.0002,70057.0,70056.0,0.57662998]
[1730481378438,0.0002,70057.0,70056.0,0.54862998]
[1730481378883,0.0002,70057.0,70056.0,0.56763037]
[1730481379103,0.0002,70057.0,70056.0,0.58163037]
[1730481380233,0.0002,70057.0,70056.0,0.79631325]
[1730481380467,0.00288857,70071.0,70070.0,0.142714]
[1730481380694,0.00288857,70071.0,70070.0,0.56496572]
[1730481380922,0.00288857,70071.0,70070.0,0.3243073]
[1730481381425,0.00288857,70071.0,70070.0,0.1673219]
[1730481381607,0.00288857,70071.0,70070.0,0.1443219]
[1730481381867,0.14560057,70071.0,70070.0,0.1443219]
[1730481382107,0.00288857,70071.0,70070.0,0.1573219]
[1730481382338,0.00288857,70071.0,70070.0,0.1713219]
[1730481382566,0.00288857,70071.0,70070.0,0.18845409]
[1730481382786,0.14560057,70071.0,70070.0,0.16145409]
[1730481383010,0.14560057,70071.0,70070.0,0.66145409]
[1730481383242,0.15871624,70071.0,70070.0,0.50586665]
[1730481383946,0.01311567,70071.0,70070.0,0.50586665]
[1730481384173,0.142712,70071.0,70070.0,0.50586665]
[1730481384398,0.15582767,70071.0,70070.0,0.52886665]
[1730481384650,0.26631767,70071.0,70070.0,0.51586665]
[1730481384894,0.26631767,70071.0,70070.0,0.50686665]
[1730481384895,0.66637017,70071.0,70070.0,0.50686665]
[1730481385148,0.70246125,70071.0,70070.0,0.50686665]
[1730481385611,0.562006,70071.0,70070.0,0.50686665]
[1730481385800,0.560006,70071.0,70070.0,0.50586665]
[1730481386045,0.562006,70071.0,70070.0,0.50686665]
[1730481386287,0.564006,70071.0,70070.0,0.50786665]
[1730481386739,0.56401203,70071.0,70070.0,0.50786665]
[1730481386968,0.70246728,70071.0,70070.0,0.50786665]
[1730481387220,0.70246728,70071.0,70070.0,0.04321107]
[1730481387438,0.70046728,70071.0,70070.0,0.04221107]
[1730481387672,0.69946728,70071.0,70070.0,0.04221107]
[1730481387893,0.69946728,70071.0,70070.0,0.04121107]
[1730481388117,0.70046728,70071.0,70070.0,0.04221107]
[1730481388334,0.70146728,70071.0,70070.0,0.002]
[1730481388575,0.70046728,70071.0,70070.0,0.001]
[1730481388816,0.285432,70069.0,70049.0,0.21468288]
[1730481389100,0.1,70070.0,70050.0,0.21468288]
[1730481389101,0.242753,70051.0,70050.0,0.21468288]
[1730481389315,0.30045303,70051.0,70050.0,0.22169644]
[1730481389779,0.142771,70042.0,70024.0,0.21468288]
[1730481390007,0.2794919,70042.0,70041.0,0.22177258]
[1730481390240,0.30047103,70042.0,70041.0,0.22177258]
[1730481390469,0.20047103,70042.0,70041.0,0.24394984]
[1730481390693,0.285566,70037.0,70029.0,0.142796]
[1730481390886,0.142785,70035.0,70033.0,0.35313813]
[1730481391142,0.285539,70043.0,70033.0,0.35313813]
[1730481391143,0.285438,70068.0,70034.0,0.04959341]
[1730481391375,0.1,70053.0,70035.0,0.13845525]
[1730481391638,0.014,70042.0,70041.0,0.38045588]
[1730481391863,0.285521,70048.0,70041.0,0.20180084]
[1730481392094,0.01313484,70047.0,70042.0,0.13845525]
[1730481392322,0.01313484,70046.0,70043.0,0.285538]
[1730481392549,0.01313484,70046.0,70042.0,0.21375525]
[1730481392550,0.014,70055.0,70044.0,0.16145525]
[1730481392792,0.285498,70053.0,70027.0,0.285601]
[1730481393019,0.24652507,70060.0,70027.0,0.285601]
[1730481393020,0.142765,70045.0,70044.0,0.21468288]
[1730481393261,0.142786,70035.0,70032.0,0.21468288]
[1730481393504,0.142785,70036.0,70032.0,0.21468288]
[1730481393727,0.013144,70035.0,70033.0,0.21468288]
[1730481393958,0.001,70048.0,70033.0,0.21468288]
[1730481393959,0.142778,70039.0,70034.0,0.13845525]
[1730481394191,0.142781,70037.0,70035.0,0.00714047]
[1730481394438,0.15592413,70036.0,70035.0,0.14559572]
[1730481394678,0.15592413,70036.0,70035.0,0.00714047]
[1730481395391,0.285557,70039.0,70026.0,0.1873]
[1730481395392,0.142795,70031.0,70027.0,0.023]
[1730481395607,0.286557,70039.0,70026.0,0.1873]
[1730481395608,0.142802,70027.0,70026.0,0.1873]
[1730481395846,0.285559,70038.0,70028.0,0.00719972]
[1730481396079,0.142783,70036.0,70035.0,0.001]
[1730481396314,0.142783,70036.0,70035.0,0.52776532]
[1730481396315,0.01314315,70036.0,70035.0,0.52776532]
[1730481396551,0.001,70039.0,70038.0,0.142779]
[1730481396832,0.001,70039.0,70038.0,0.39984488]
[1730481397048,0.142749,70053.0,70039.0,0.023]
[1730481397272,0.0263044,70052.0,70047.0,0.14276]
[1730481397523,0.0263044,70051.0,70048.0,0.13845525]
[1730481397749,0.285466,70061.0,70050.0,0.142755]
[1730481397750,0.02103796,70060.0,70050.0,0.142755]
[1730481397982,0.02103796,70060.0,70049.0,0.308514]
[1730481397983,0.01315482,70056.0,70051.0,0.14546035]
[1730481398225,0.01315482,70055.0,70051.0,0.14546035]
[1730481398457,0.01315482,70054.0,70053.0,0.142749]
[1730481398700,0.01315482,70054.0,70053.0,0.30420425]
[1730481398932,0.00082,70057.0,70056.0,0.142742]
[1730481399158,0.00082,70057.0,70056.0,0.30705188]
[1730481399419,0.00082,70057.0,70056.0,0.43751396]
[1730481400311,0.00082,70057.0,70056.0,0.65219684]
[1730481400534,0.14356,70057.0,70056.0,0.00696281]
[1730481400760,0.16992586,70057.0,70056.0,0.00696281]
[1730481400983,0.16992586,70057.0,70046.0,0.1878]
[1730481400984,0.02718586,70057.0,70047.0,0.285522]
[1730481401232,0.145561,70057.0,70056.0,0.016]
[1730481401454,0.20256232,70057.0,70056.0,0.003]
[1730481401690,0.20256132,70057.0,70056.0,0.009]
[1730481401946,0.20256132,70057.0,70056.0,0.003]
[1730481402171,0.20156132,70057.0,70056.0,0.003]
[1730481402392,0.20156132,70057.0,70048.0,0.13845525]
[1730481402393,0.05982132,70057.0,70048.0,0.13845525]
[1730481402602,0.142757,70049.0,70048.0,0.13845525]
[1730481402813,0.01319867,70049.0,70048.0,0.13845525]
[1730481404923,0.01319867,70049.0,70038.0,0.285556]
[1730481405162,0.01319867,70049.0,70048.0,0.003]
[1730481405163,0.143757,70049.0,70048.0,0.003]
[1730481405374,0.2018492,70049.0,70048.0,0.15248573]
[1730481405606,0.02741088,70049.0,70048.0,0.15248573]
[1730481405825,0.02741092,70049.0,70048.0,0.15248573]
[1730481406059,0.02741092,70049.0,70048.0,0.14848573]
[1730481406060,0.01420506,70049.0,70048.0,0.14848573]
[1730481406287,0.0142078,70049.0,70048.0,0.14848573]
[1730481406512,0.0142078,70049.0,70048.0,0.17548573]
[1730481407007,0.0132078,70049.0,70048.0,0.17248573]
[1730481407236,0.0142078,70049.0,70048.0,0.6327023]
[1730481407462,0.001,70049.0,70048.0,0.6298471]
[1730481407682,0.001,70049.0,70048.0,0.6258471]
[1730481408158,0.001,70049.0,70048.0,0.6298471]
[1730481408387,0.285437,70068.0,70056.0,0.165742]
[1730481408637,0.285446,70066.0,70056.0,0.16841806]
[1730481408869,0.01403907,70057.0,70056.0,0.31116006]
[1730481409782,0.014045,70057.0,70056.0,0.16841806]
[1730481410203,0.014045,70057.0,70056.0,0.31116006]
[1730481410487,0.014045,70057.0,70056.0,0.39937577]
[1730481410718,0.01406077,70057.0,70056.0,0.39937577]
[1730481411153,0.00082,70057.0,70056.0,0.18241806]
[1730481411395,0.01506375,70057.0,70056.0,0.05296281]
[1730481411610,0.17896375,70057.0,70056.0,0.009]
[1730481411835,0.285501,70053.0,70042.0,0.35745288]
[1730481412090,0.142753,70051.0,70050.0,0.21468288]
[1730481412326,0.00082,70057.0,70050.0,0.21468288]
[1730481412327,0.000808,70094.0,70056.0,0.014]
[1730481412590,0.03766196,70103.0,70070.0,1.284428]
[1730481412798,0.207789,70144.0,70061.0,0.85904129]
[1730481412799,0.285014,70172.0,70102.0,0.24652507]
[1730481413038,0.0132718,70140.0,70120.0,0.24652507]
[1730481413295,0.285098,70152.0,70122.0,0.285217]
[1730481413296,0.0132718,70139.0,70122.0,0.285217]
[1730481413524,0.85656162,70137.0,70124.0,0.023]
[1730481413759,0.285144,70140.0,70123.0,0.00959502]
[1730481413760,0.01327147,70136.0,70123.0,0.00959502]
[1730481413990,0.01327147,70136.0,70111.0,0.16370542]
[1730481413991,0.142582,70135.0,70125.0,0.85656162]
[1730481414224,0.01327147,70136.0,70126.0,0.00955704]
[1730481414466,0.01319651,70135.0,70127.0,0.87956162]
[1730481414681,0.000808,70128.0,70127.0,0.165597]
[1730481415141,0.000808,70128.0,70127.0,0.30405225]
[1730481415327,0.000808,70128.0,70127.0,0.31359663]
[1730481415781,0.000808,70128.0,70127.0,0.32759663]
[1730481416212,0.000808,70128.0,70127.0,0.43139759]
[1730481416433,0.001,70135.0,70127.0,0.43139759]
[1730481416434,0.001,70135.0,70134.0,0.142584]
[1730481416660,0.001,70135.0,70134.0,0.30403925]
[1730481416886,0.001,70135.0,70134.0,0.31349501]
[1730481417122,0.000808,70141.0,70134.0,0.31349401]
[1730481417354,0.000808,70141.0,70140.0,0.37928347]
[1730481417355,0.21467362,70141.0,70140.0,0.37928347]
[1730481417572,0.21467362,70141.0,70140.0,0.44043716]
[1730481417800,0.000808,70141.0,70140.0,0.38866329]
[1730481418456,0.001808,70141.0,70140.0,0.38866329]
[1730481418886,0.000808,70141.0,70140.0,0.00937982]
[1730481419104,0.000808,70141.0,70140.0,0.02237982]
[1730481419319,0.000808,70141.0,70140.0,0.34777973]
[1730481419534,0.000808,70141.0,70140.0,0.19158855]
[1730481419759,0.000808,70141.0,70140.0,0.02237982]
[1730481420183,0.000808,70141.0,70140.0,0.013]
[1730481420420,0.000808,70141.0,70140.0,0.02237982]
[1730481420647,0.000808,70141.0,70140.0,0.03637982]
[1730481420902,0.143377,70141.0,70140.0,0.03637982]
[1730481421568,0.000808,70141.0,70140.0,0.027]
[1730481421820,0.28183225,70141.0,70140.0,0.00937982]
[1730481422045,0.38183225,70141.0,70140.0,0.00937982]
[1730481422280,0.23926325,70141.0,70140.0,0.014]
[1730481422495,0.243377,70141.0,70140.0,0.014]
[1730481423171,0.247377,70141.0,70140.0,0.015]
[1730481423406,0.000808,70141.0,70140.0,0.014]
[1730481423611,0.000808,70141.0,70134.0,0.37928347]
[1730481423828,0.000808,70141.0,70140.0,0.006]
[1730481424271,0.000808,70141.0,70134.0,0.13845525]
[1730481424489,0.000808,70141.0,70140.0,0.00937982]
[1730481424733,0.000808,70141.0,70140.0,0.012]
[1730481424947,0.000808,70141.0,70140.0,0.02137982]
[1730481425158,0.000808,70141.0,70140.0,0.01237982]
[1730481425342,0.143377,70141.0,70140.0,0.01237982]
[1730481425594,0.143377,70141.0,70140.0,0.003]
[1730481425801,0.143377,70141.0,70134.0,0.012]
[1730481425802,0.285151,70139.0,70134.0,0.012]
[1730481426029,0.000808,70141.0,70137.0,0.21386562]
[1730481426243,0.000808,70141.0,70138.0,0.16198612]
[1730481426451,0.000808,70141.0,70138.0,0.17139125]
[1730481426634,0.000808,70141.0,70139.0,0.142574]
[1730481426880,0.000808,70141.0,70140.0,0.28402625]
[1730481427099,0.000808,70141.0,70140.0,0.30540607]
[1730481427382,0.000808,70141.0,70140.0,0.33605668]
[1730481427605,0.143377,70141.0,70140.0,0.01237982]
[1730481427830,0.143377,70141.0,70140.0,0.003]
[1730481428040,0.000808,70141.0,70139.0,0.007]
[1730481428463,0.000808,70141.0,70140.0,0.89717534]
[1730481428671,0.000808,70141.0,70140.0,0.68930972]
[1730481428908,0.000808,70141.0,70140.0,0.70168954]
[1730481429330,0.000808,70141.0,70140.0,0.69868954]
[1730481429979,0.000808,70141.0,70140.0,0.52711854]
[1730481430194,0.000808,70141.0,70140.0,0.77943239]
[1730481430860,0.000808,70141.0,70140.0,0.52711854]
[1730481431072,0.000808,70141.0,70140.0,0.14783507]
[1730481431503,0.000808,70141.0,70140.0,0.16183507]
[1730481431685,0.000808,70141.0,70140.0,0.02337982]
[1730481432141,0.143377,70141.0,70140.0,0.03737982]
[1730481432347,0.143377,70141.0,70140.0,0.014]
[1730481432796,0.000808,70141.0,70140.0,0.028]
[1730481433005,0.000808,70141.0,70129.0,0.21386562]
[1730481433219,0.000808,70141.0,70130.0,0.14796165]
[1730481433427,0.42852,70141.0,70140.0,0.028]
[1730481433883,0.52852,70141.0,70140.0,0.014]
[1730481434322,0.66697525,70141.0,70140.0,0.014]
[1730481434543,0.142586,70133.0,70132.0,0.21386562]
[1730481434768,0.285169,70134.0,70132.0,0.37163823]
[1730481434998,0.000808,70141.0,70133.0,0.38452753]
[1730481435221,0.000808,70141.0,70135.0,0.14258]
[1730481435451,0.000808,70141.0,70134.0,0.29462376]
[1730481435452,0.000808,70141.0,70136.0,0.13845525]
[1730481435667,0.000808,70141.0,70136.0,0.1478857]
[1730481436113,0.285143,70140.0,70136.0,0.00943045]
[1730481436325,0.142578,70137.0,70136.0,0.00943045]
[1730481436541,0.285143,70140.0,70128.0,0.001638]
[1730481436761,0.142576,70138.0,70132.0,0.21386562]
[1730481436976,0.000808,70141.0,70129.0,0.00951906]
[1730481437197,0.000808,70141.0,70128.0,0.001638]
[1730481437198,0.04538379,70141.0,70128.0,0.001638]
[1730481437450,0.01310843,70140.0,70129.0,0.00951906]
[1730481437684,0.01310843,70139.0,70136.0,0.009]
[1730481437913,0.142578,70137.0,70136.0,0.022]
[1730481438133,0.01310843,70137.0,70128.0,0.001638]
[1730481438358,0.01310843,70136.0,70128.0,0.001638]